[Event "CAN-op"]
[Site "Ottawa CAN"]
[Date "2026.07.11"]
[Round "1.1"]
[White "Stefansson, Vignir Vatnar"]
[Black "Zhu, Elber"]
[Result "1-0"]
[ECO "E11"]
[WhiteElo "2540"]
[BlackElo "1988"]
[WhiteFideId "-1"]
[BlackFideId "-1"]
[PlyCount "63"]
[GameId "2332995606633949"]
[EventDate "2026.07.11"]
[EventType "swiss"]
[EventRounds "9"]
[EventCountry "CAN"]
[TimeControl "5400+30"]
[WhiteClock "0:59:40"]
[BlackClock "0:28:21"]

1. d4 {[%emt 0:00:02.94]} Nf6 {[%emt 0:00:19.94]} 2. Nf3 {[%emt 0:00:09]} d5 {[%emt 0:01:06]} 3. c4 {[%emt 0:00:06]} e6 {[%emt 0:00:00]} 4. g3 {[%emt 0:00:07]} Bb4+ {[%emt 0:00:10]} 5. Bd2 {[%emt 0:00:32]} Be7 {[%emt 0:00:40]} 6. Bg2 {[%emt 0:00:10]} O-O {[%emt 0:00:09]} 7. O-O {[%emt 0:00:05]} c6 {[%emt 0:00:31]} 8. Bf4 {[%emt 0:02:17]} Nbd7 {[%emt 0:01:58]} 9. Na3 {[%emt 0:00:11]} Bxa3 {[%emt 0:07:46]} 10. bxa3 {[%emt 0:00:14]} dxc4 {[%emt 0:07:32]} 11. Qc2 {[%emt 0:06:32]} b5 {[%emt 0:02:44]} 12. e4 {[%emt 0:01:46]} Re8 {[%emt 0:04:27]} 13. Bd6 {[%emt 0:03:56]} Bb7 {[%emt 0:04:43]} 14. e5 {[%emt 0:03:37]} Nd5 {[%emt 0:01:37]} 15. Nd2 {[%emt 0:00:14]} Qb6 {[%emt 0:02:21]} 16. Ne4 {[%emt 0:01:53]} h6 {[%emt 0:15:13.10]} 17. Qd2 {[%emt 0:03:46]} a5 {[%emt 0:03:01]} 18. Rab1 {[%emt 0:05:04]} Red8 {[%emt 0:04:36]} 19. f4 {[%emt 0:01:47]} f5 {[%emt 0:01:19]} 20. exf6 {[%emt 0:04:30]} N7xf6 {[%emt 0:00:24]} 21. Bc5 {[%emt 0:00:05]} Qc7 {[%emt 0:02:01]} 22. Rbe1 {[%emt 0:00:30]} Nxe4 {[%emt 0:02:03]} 23. Bxe4 {[%emt 0:00:28]} Re8 {[%emt 0:01:11]} 24. Bg6 {[%emt 0:00:32]} c3 {[%emt 0:01:38]} 25. Qc2 {[%emt 0:01:52]} Red8 {[%emt 0:02:04]} 26. f5 {[%emt 0:02:56]} exf5 {[%emt 0:01:39]} 27. Qxf5 {[%emt 0:00:08]} b4 {[%emt 0:03:42]} 28. Be7 {[%emt 0:02:33.10]} Qd7 {[%emt 0:01:47]} 29. Qf7+ {[%emt 0:00:27]} Kh8 {[%emt 0:00:01]} 30. Bxd8 {[%emt 0:00:10]} Qxf7 {[%emt 0:00:50]} 31. Rxf7 {[%emt 0:00:05]} Rxd8 {[%emt 0:00:06]} 32. Rxb7 {[%emt 0:00:05]} 1-0

[Event "CAN-op"]
[Site "Ottawa CAN"]
[Date "2026.07.11"]
[Round "1.2"]
[White "Lazarev, Shon"]
[Black "Rodrigue-Lemieux, Shawn"]
[Result "0-1"]
[ECO "B45"]
[WhiteElo "1894"]
[BlackElo "2534"]
[WhiteFideId "-1"]
[BlackFideId "-1"]
[PlyCount "60"]
[GameId "2332995606728158"]
[EventDate "2026.07.11"]
[EventType "swiss"]
[EventRounds "9"]
[EventCountry "CAN"]
[TimeControl "5400+30"]
[WhiteClock "0:00:59"]
[BlackClock "0:19:22"]

1. e4 {[%emt 0:00:00.94]} c5 {[%emt 0:02:46.94]} 2. Nf3 {[%emt 0:00:16]} e6 {[%emt 0:00:09]} 3. Nc3 {[%emt 0:00:22]} Nc6 {[%emt 0:00:12]} 4. d4 {[%emt 0:01:12]} cxd4 {[%emt 0:01:28]} 5. Nxd4 {[%emt 0:00:46]} Bc5 {[%emt 0:00:15]} 6. Nxc6 {[%emt 0:02:41]} bxc6 {[%emt 0:01:11]} 7. Bd3 {[%emt 0:02:24]} d5 {[%emt 0:01:09]} 8. O-O {[%emt 0:00:45]} Ne7 {[%emt 0:02:28]} 9. Kh1 {[%emt 0:04:57]} O-O {[%emt 0:02:12]} 10. f4 {[%emt 0:15:08]} f6 {[%emt 0:13:10]} 11. Rf3 {[%emt 0:13:40.10]} f5 {[%emt 0:10:00]} 12. e5 {[%emt 0:01:22]} a5 {[%emt 0:04:00.10]} 13. Qe2 {[%emt 0:18:11]} a4 {[%emt 0:04:19]} 14. Bd2 {[%emt 0:04:43]} a3 {[%emt 0:03:50]} 15. b3 {[%emt 0:00:29]} Bb4 {[%emt 0:01:10]} 16. Na4 {[%emt 0:02:36]} Bxd2 {[%emt 0:08:31]} 17. Qxd2 {[%emt 0:00:01]} Ra5 {[%emt 0:01:22]} 18. Qb4 {[%emt 0:02:44]} c5 {[%emt 0:01:01]} 19. Qxa3 {[%emt 0:04:28]} Bd7 {[%emt 0:01:46]} 20. c3 {[%emt 0:02:42]} Bc6 {[%emt 0:05:39]} 21. Rd1 {[%emt 0:06:55]} d4 {[%emt 0:03:43]} 22. Rg3 {[%emt 0:00:05]} Nd5 {[%emt 0:00:55]} 23. cxd4 {[%emt 0:04:28]} Nxf4 {[%emt 0:01:27]} 24. Qc1 {[%emt 0:01:11]} Qh4 {[%emt 0:07:04]} 25. Bf1 {[%emt 0:07:12]} Nh5 {[%emt 0:02:22]} 26. Rc3 {[%emt 0:02:23]} f4 {[%emt 0:00:43]} 27. Kg1 {[%emt 0:00:54]} f3 {[%emt 0:00:54]} 28. dxc5 {[%emt 0:01:15]} fxg2 {[%emt 0:00:43]} 29. Qe3 {[%emt 0:00:35]} gxf1=R+ {[%emt 0:01:25]} 30. Rxf1 {[%emt 0:00:05]} Qg4+ {[%emt 0:00:13]} 0-1

[Event "CAN-op"]
[Site "Ottawa CAN"]
[Date "2026.07.11"]
[Round "1.3"]
[White "Atanasov, Anthony"]
[Black "Berube, Maximilien"]
[Result "1-0"]
[ECO "D04"]
[WhiteElo "2470"]
[BlackElo "2000"]
[WhiteFideId "-1"]
[BlackFideId "-1"]
[PlyCount "119"]
[GameId "2332995606752735"]
[EventDate "2026.07.11"]
[EventType "swiss"]
[EventRounds "9"]
[EventCountry "CAN"]
[TimeControl "5400+30"]
[WhiteClock "0:04:05"]
[BlackClock "0:01:36"]

1. d4 {[%emt 0:00:02.94]} d5 {[%emt 0:00:06.94]} 2. Nf3 {[%emt 0:00:13]} Nf6 {[%emt 0:00:05]} 3. e3 {[%emt 0:00:21]} c5 {[%emt 0:04:28]} 4. Nbd2 {[%emt 0:00:09]} Nc6 {[%emt 0:00:14]} 5. Bb5 {[%emt 0:00:12]} cxd4 {[%emt 0:07:42]} 6. exd4 {[%emt 0:00:11]} a6 {[%emt 0:01:29]} 7. Bxc6+ {[%emt 0:01:42]} bxc6 {[%emt 0:00:06]} 8. c4 {[%emt 0:01:28]} e6 {[%emt 0:04:55]} 9. Qa4 {[%emt 0:05:31]} dxc4 {[%emt 0:24:27.10]} 10. Ne5 {[%emt 0:02:57]} Bd7 {[%emt 0:00:48]} 11. Ndxc4 {[%emt 0:07:20]} c5 {[%emt 0:06:08]} 12. Nxd7 {[%emt 0:00:05]} Qxd7 {[%emt 0:00:08]} 13. Qxd7+ {[%emt 0:23:13.10]} Nxd7 {[%emt 0:00:07]} 14. Be3 {[%emt 0:00:08]} f6 {[%emt 0:03:56]} 15. Ke2 {[%emt 0:02:56]} cxd4 {[%emt 0:06:13]} 16. Bxd4 {[%emt 0:00:02]} e5 {[%emt 0:03:11]} 17. Be3 {[%emt 0:00:48]} Bc5 {[%emt 0:04:56]} 18. Rhd1 {[%emt 0:02:39]} Rc8 {[%emt 0:10:50]} 19. Nd6+ {[%emt 0:12:41]} Bxd6 {[%emt 0:00:39]} 20. Rxd6 {[%emt 0:00:01]} Rc2+ {[%emt 0:04:01]} 21. Kf3 {[%emt 0:00:09]} Rxb2 {[%emt 0:02:40]} 22. Rxa6 {[%emt 0:01:40]} O-O {[%emt 0:00:54]} 23. Ra7 {[%emt 0:01:22]} e4+ {[%emt 0:01:03]} 24. Kg3 {[%emt 0:05:53]} Ne5 {[%emt 0:01:25]} 25. Rc1 {[%emt 0:00:13]} h5 {[%emt 0:03:46]} 26. a4 {[%emt 0:07:28]} Ra2 {[%emt 0:02:06]} 27. Rcc7 {[%emt 0:03:03]} Rf7 {[%emt 0:00:51]} 28. Rxf7 {[%emt 0:00:02]} Nxf7 {[%emt 0:00:04]} 29. Kf4 {[%emt 0:01:40]} Ne5 {[%emt 0:01:31]} 30. Kxe4 {[%emt 0:01:11]} Ng4 {[%emt 0:01:08]} 31. Bb6 {[%emt 0:04:44]} Nxf2+ {[%emt 0:01:30]} 32. Kd4 {[%emt 0:03:11]} Ng4 {[%emt 0:00:54]} 33. a5 {[%emt 0:01:11]} Ne5 {[%emt 0:00:36]} 34. Rc7 {[%emt 0:02:04]} h4 {[%emt 0:02:06]} 35. Kd5 {[%emt 0:02:06]} Nd3 {[%emt 0:01:25]} 36. Rc4 {[%emt 0:00:43]} h3 {[%emt 0:01:11]} 37. gxh3 {[%emt 0:00:04]} Kf7 {[%emt 0:00:35]} 38. h4 {[%emt 0:01:41]} Kg6 {[%emt 0:00:24]} 39. Rg4+ {[%emt 0:02:53]} Kf7 {[%emt 0:00:11]} 40. Rg3 {[%emt 0:00:54]} Ne5 {[%emt 0:01:03]} 41. h3 {[%emt 0:01:13]} Ra4 {[%emt 0:00:29]} 42. h5 {[%emt 0:00:11]} Ra2 {[%emt 0:00:36]} 43. Rc3 {[%emt 0:00:21]} Kg8 {[%emt 0:00:28]} 44. Rc8+ {[%emt 0:01:12]} Kh7 {[%emt 0:00:13]} 45. Ra8 {[%emt 0:01:38]} Nd3 {[%emt 0:00:41]} 46. h4 {[%emt 0:01:10]} Ra4 {[%emt 0:00:09]} 47. Kd6 {[%emt 0:00:32]} Ne5 {[%emt 0:00:48]} 48. a6 {[%emt 0:02:34]} Rxh4 {[%emt 0:00:34]} 49. a7 {[%emt 0:00:25]} Nc4+ {[%emt 0:00:36]} 50. Kc5 {[%emt 0:00:06]} Nxb6 {[%emt 0:00:26]} 51. Kxb6 {[%emt 0:00:01]} Rb4+ {[%emt 0:00:34]} 52. Ka5 {[%emt 0:00:08]} Rb2 {[%emt 0:00:28]} 53. Rh8+ {[%emt 0:01:25]} Kxh8 {[%emt 0:00:03]} 54. a8=Q+ {[%emt 0:00:03]} Kh7 {[%emt 0:00:06]} 55. Qe4+ {[%emt 0:00:09]} Kg8 {[%emt 0:00:41]} 56. Qe8+ {[%emt 0:00:07]} Kh7 {[%emt 0:00:04]} 57. Qg6+ {[%emt 0:00:04]} Kg8 {[%emt 0:01:19]} 58. h6 {[%emt 0:00:06]} Ra2+ {[%emt 0:00:09]} 59. Kb6 {[%emt 0:00:04]} Rb2+ {[%emt 0:00:07]} 60. Kc6 {[%emt 0:00:04]} 1-0

[Event "CAN-op"]
[Site "Ottawa CAN"]
[Date "2026.07.11"]
[Round "1.4"]
[White "Valdizon, Armando"]
[Black "Preotu, Razvan"]
[Result "0-1"]
[ECO "A26"]
[WhiteElo "2082"]
[BlackElo "2482"]
[WhiteFideId "-1"]
[BlackFideId "-1"]
[PlyCount "61"]
[GameId "2332995606793696"]
[EventDate "2026.07.11"]
[EventType "swiss"]
[EventRounds "9"]
[EventCountry "CAN"]
[TimeControl "5400+30"]
[WhiteClock "0:06:29"]
[BlackClock "0:35:39"]

1. c4 {[%emt 0:00:40.94]} Nf6 {[%emt 0:04:30.94]} 2. Nc3 {[%emt 0:00:15]} g6 {[%emt 0:04:16]} 3. g3 {[%emt 0:00:20]} Bg7 {[%emt 0:00:14]} 4. Bg2 {[%emt 0:00:09]} O-O {[%emt 0:00:40]} 5. Nf3 {[%emt 0:04:23]} Nc6 {[%emt 0:09:05]} 6. O-O {[%emt 0:00:34]} e5 {[%emt 0:03:55]} 7. d3 {[%emt 0:02:47]} d6 {[%emt 0:01:28]} 8. Rb1 {[%emt 0:01:01]} a5 {[%emt 0:00:21]} 9. a3 {[%emt 0:00:06]} h6 {[%emt 0:00:56]} 10. b4 {[%emt 0:00:20]} axb4 {[%emt 0:00:13]} 11. axb4 {[%emt 0:00:17]} Be6 {[%emt 0:00:19]} 12. b5 {[%emt 0:06:53]} Ne7 {[%emt 0:00:35]} 13. Qc2 {[%emt 0:05:46]} Qd7 {[%emt 0:00:39]} 14. Bb2 {[%emt 0:00:55]} Bh3 {[%emt 0:00:30]} 15. Ra1 {[%emt 0:00:10]} Rab8 {[%emt 0:00:43]} 16. Ra7 {[%emt 0:06:29]} Qe6 {[%emt 0:02:15]} 17. Rfa1 {[%emt 0:12:01.10]} Bxg2 {[%emt 0:02:19]} 18. Kxg2 {[%emt 0:00:03]} Nd7 {[%emt 0:00:52]} 19. e4 {[%emt 0:06:49]} c6 {[%emt 0:04:28]} 20. bxc6 {[%emt 0:05:01]} bxc6 {[%emt 0:00:31]} 21. Rc7 {[%emt 0:01:09]} Ra8 {[%emt 0:10:08.10]} 22. Nd5 {[%emt 0:08:34]} Rxa1 {[%emt 0:08:50]} 23. Bxa1 {[%emt 0:00:18]} cxd5 {[%emt 0:05:59]} 24. cxd5 {[%emt 0:00:15]} Nxd5 {[%emt 0:00:09]} 25. exd5 {[%emt 0:00:03]} Qe8 {[%emt 0:00:07]} 26. Qc6 {[%emt 0:12:01]} Nf6 {[%emt 0:00:09]} 27. Qxd6 {[%emt 0:00:46]} Qa8 {[%emt 0:00:26]} 28. Bxe5 {[%emt 0:00:32]} Ne8 {[%emt 0:00:15]} 29. Qd7 {[%emt 0:10:38]} Bxe5 {[%emt 0:04:51]} 30. Rc8 {[%emt 0:09:45]} Nf6 {[%emt 0:00:07]} 31. Rc7 {[%emt 0:00:36]} 0-1

[Event "CAN-op"]
[Site "Ottawa CAN"]
[Date "2026.07.11"]
[Round "1.5"]
[White "Noritsyn, Nikolay"]
[Black "Zhu, Matthew"]
[Result "1-0"]
[ECO "B52"]
[WhiteElo "2458"]
[BlackElo "1996"]
[WhiteFideId "-1"]
[BlackFideId "-1"]
[PlyCount "103"]
[GameId "2332995606805985"]
[EventDate "2026.07.11"]
[EventType "swiss"]
[EventRounds "9"]
[EventCountry "CAN"]
[TimeControl "5400+30"]
[WhiteClock "0:12:53"]
[BlackClock "0:01:47"]

1. e4 {[%emt 0:00:03.94]} c5 {[%emt 0:00:09.94]} 2. Nf3 {[%emt 0:00:19]} d6 {[%emt 0:00:11]} 3. Bb5+ {[%emt 0:00:43]} Bd7 {[%emt 0:00:19]} 4. c4 {[%emt 0:00:08]} a6 {[%emt 0:02:33]} 5. Bxd7+ {[%emt 0:00:09]} Qxd7 {[%emt 0:00:07]} 6. d4 {[%emt 0:00:31]} cxd4 {[%emt 0:00:21]} 7. Nxd4 {[%emt 0:00:07]} Nf6 {[%emt 0:00:22]} 8. Nc3 {[%emt 0:00:39]} g6 {[%emt 0:00:40]} 9. Bg5 {[%emt 0:05:22]} Bg7 {[%emt 0:13:42]} 10. Bxf6 {[%emt 0:00:58]} Bxf6 {[%emt 0:01:54]} 11. Nd5 {[%emt 0:00:09]} Nc6 {[%emt 0:00:59]} 12. Nxf6+ {[%emt 0:00:15]} exf6 {[%emt 0:00:07]} 13. O-O {[%emt 0:00:39]} O-O {[%emt 0:02:04]} 14. Re1 {[%emt 0:11:27]} Rfe8 {[%emt 0:09:07]} 15. Re3 {[%emt 0:02:13]} Rad8 {[%emt 0:06:05.10]} 16. Ne2 {[%emt 0:16:14.10]} Kg7 {[%emt 0:35:22]} 17. Nc3 {[%emt 0:03:28]} Ne7 {[%emt 0:04:32]} 18. Qd4 {[%emt 0:02:35]} Qe6 {[%emt 0:01:02]} 19. b3 {[%emt 0:02:08]} Qe5 {[%emt 0:02:14]} 20. Qb6 {[%emt 0:05:17]} Rd7 {[%emt 0:00:34]} 21. Rd1 {[%emt 0:00:31]} Red8 {[%emt 0:03:53]} 22. Red3 {[%emt 0:04:03]} f5 {[%emt 0:02:26]} 23. exf5 {[%emt 0:00:39]} Nxf5 {[%emt 0:00:18]} 24. Nd5 {[%emt 0:12:06]} Ne7 {[%emt 0:02:00]} 25. Ne3 {[%emt 0:04:39]} h5 {[%emt 0:02:44]} 26. h3 {[%emt 0:00:30]} Kf8 {[%emt 0:03:57]} 27. Qb4 {[%emt 0:01:02]} Kg8 {[%emt 0:01:29]} 28. Qd2 {[%emt 0:00:56]} Kh7 {[%emt 0:03:52]} 29. Rd4 {[%emt 0:00:48]} Qe6 {[%emt 0:01:01]} 30. Qd3 {[%emt 0:09:15]} Nc6 {[%emt 0:00:49]} 31. Re4 {[%emt 0:00:25]} Ne5 {[%emt 0:00:12]} 32. Qd2 {[%emt 0:02:05]} f5 {[%emt 0:00:36]} 33. Rd4 {[%emt 0:00:33]} Nc6 {[%emt 0:00:22]} 34. Rd3 {[%emt 0:03:28]} Ne5 {[%emt 0:00:49]} 35. Rd4 {[%emt 0:00:58]} Nc6 {[%emt 0:00:06]} 36. Rf4 {[%emt 0:00:04]} Ne7 {[%emt 0:00:24]} 37. h4 {[%emt 0:01:07]} Qe5 {[%emt 0:00:58]} 38. g3 {[%emt 0:00:32]} Kg7 {[%emt 0:00:35]} 39. Re1 {[%emt 0:01:01]} Qf6 {[%emt 0:00:09]} 40. Rd4 {[%emt 0:01:03]} Nc6 {[%emt 0:00:32]} 41. Rd3 {[%emt 0:00:50]} Ne5 {[%emt 0:00:09]} 42. Nd5 {[%emt 0:00:06]} Nxd3 {[%emt 0:00:56]} 43. Nxf6 {[%emt 0:00:07]} Nxe1 {[%emt 0:00:04]} 44. Qc3 {[%emt 0:00:19]} Nf3+ {[%emt 0:01:07]} 45. Kg2 {[%emt 0:00:04]} Nxh4+ {[%emt 0:00:34]} 46. gxh4 {[%emt 0:00:07]} Rf7 {[%emt 0:00:03]} 47. Nxh5+ {[%emt 0:01:18]} Kg8 {[%emt 0:00:50]} 48. Nf4 {[%emt 0:00:18]} Kh7 {[%emt 0:00:09]} 49. Qe3 {[%emt 0:00:13]} Rdd7 {[%emt 0:00:32]} 50. Qe6 {[%emt 0:00:20]} Rg7 {[%emt 0:00:06]} 51. Nd5 {[%emt 0:00:32]} Rd8 {[%emt 0:00:06]} 52. Kg3 {[%emt 0:00:13]} 1-0

[Event "CAN-op"]
[Site "Ottawa CAN"]
[Date "2026.07.11"]
[Round "1.7"]
[White "Sambuev, Bator"]
[Black "Nassar, Marc"]
[Result "1-0"]
[ECO "A56"]
[WhiteElo "2420"]
[BlackElo "1945"]
[WhiteFideId "-1"]
[BlackFideId "-1"]
[PlyCount "85"]
[GameId "2332995606846948"]
[EventDate "2026.07.11"]
[EventType "swiss"]
[EventRounds "9"]
[EventCountry "CAN"]
[TimeControl "5400+30"]
[WhiteClock "0:19:43"]
[BlackClock "0:09:54"]

1. d4 {[%emt 0:03:25.94]} c5 {[%emt 0:10:48.94]} 2. d5 {[%emt 0:00:08]} d6 {[%emt 0:00:11]} 3. c4 {[%emt 0:00:33]} e5 {[%emt 0:00:22]} 4. e4 {[%emt 0:00:10]} Nf6 {[%emt 0:00:35]} 5. Nc3 {[%emt 0:00:07]} Be7 {[%emt 0:00:14]} 6. Be2 {[%emt 0:03:11]} Nbd7 {[%emt 0:01:39]} 7. Nf3 {[%emt 0:03:27]} Nf8 {[%emt 0:01:04]} 8. h4 {[%emt 0:00:43]} h6 {[%emt 0:03:59]} 9. g3 {[%emt 0:05:28]} N8h7 {[%emt 0:07:46]} 10. Nh2 {[%emt 0:03:02]} a6 {[%emt 0:03:12]} 11. a4 {[%emt 0:01:39]} b6 {[%emt 0:00:32]} 12. Nf1 {[%emt 0:01:19]} Rb8 {[%emt 0:01:39]} 13. Ne3 {[%emt 0:01:41]} g6 {[%emt 0:02:01]} 14. Nc2 {[%emt 0:06:07]} Bf8 {[%emt 0:06:26.10]} 15. b4 {[%emt 0:01:53]} Qc7 {[%emt 0:07:38]} 16. Be3 {[%emt 0:01:02]} Nd7 {[%emt 0:06:48]} 17. O-O {[%emt 0:09:25.10]} Bg7 {[%emt 0:02:29]} 18. h5 {[%emt 0:01:27]} g5 {[%emt 0:01:56]} 19. Bg4 {[%emt 0:02:44]} Nhf6 {[%emt 0:09:50]} 20. Bf5 {[%emt 0:00:19]} O-O {[%emt 0:05:25]} 21. b5 {[%emt 0:04:22]} Ra8 {[%emt 0:02:16]} 22. Bd2 {[%emt 0:01:00]} Kh8 {[%emt 0:03:55]} 23. bxa6 {[%emt 0:05:03]} Bxa6 {[%emt 0:00:07]} 24. Ne3 {[%emt 0:02:23]} Ng8 {[%emt 0:00:33]} 25. Qf3 {[%emt 0:01:22]} Ne7 {[%emt 0:00:43]} 26. Nb5 {[%emt 0:00:36]} Bxb5 {[%emt 0:00:21]} 27. cxb5 {[%emt 0:00:13]} Nf6 {[%emt 0:02:32]} 28. g4 {[%emt 0:05:15]} Nxf5 {[%emt 0:01:10]} 29. Qxf5 {[%emt 0:00:19]} Nd7 {[%emt 0:00:14]} 30. Nc4 {[%emt 0:00:14]} Ra7 {[%emt 0:00:43]} 31. a5 {[%emt 0:04:12]} Qb8 {[%emt 0:00:56]} 32. Rfb1 {[%emt 0:06:41]} Kg8 {[%emt 0:02:00]} 33. Ra3 {[%emt 0:07:21]} Bf6 {[%emt 0:02:52]} 34. axb6 {[%emt 0:01:33]} Rxa3 {[%emt 0:00:41]} 35. Nxa3 {[%emt 0:00:40]} Qb7 {[%emt 0:03:22]} 36. Nc4 {[%emt 0:00:43]} Be7 {[%emt 0:00:01]} 37. Na5 {[%emt 0:00:08]} Qc8 {[%emt 0:00:42]} 38. Nc6 {[%emt 0:01:03]} Bd8 {[%emt 0:00:02]} 39. Ra1 {[%emt 0:00:39]} Nxb6 {[%emt 0:01:31]} 40. Qxc8 {[%emt 0:00:14]} Nxc8 {[%emt 0:00:06]} 41. Ra8 {[%emt 0:00:04]} Bf6 {[%emt 0:01:38]} 42. Ba5 {[%emt 0:00:11]} c4 {[%emt 0:00:36]} 43. Kf1 {[%emt 0:00:10]} 1-0

[Event "CAN-op"]
[Site "Ottawa CAN"]
[Date "2026.07.11"]
[Round "1.8"]
[White "Hoekman, Samuel"]
[Black "Golubka, Petro"]
[Result "0-1"]
[ECO "E56"]
[WhiteElo "1983"]
[BlackElo "2355"]
[WhiteFideId "-1"]
[BlackFideId "-1"]
[PlyCount "47"]
[GameId "2332995606863333"]
[EventDate "2026.07.11"]
[EventType "swiss"]
[EventRounds "9"]
[EventCountry "CAN"]
[TimeControl "5400+30"]
[WhiteClock "0:04:12"]
[BlackClock "0:32:50"]

1. d4 {[%emt 0:00:02.94]} Nf6 {[%emt 0:18:03.94]} 2. c4 {[%emt 0:00:31]} e6 {[%emt 0:00:09]} 3. Nc3 {[%emt 0:00:28]} Bb4 {[%emt 0:00:11]} 4. e3 {[%emt 0:01:27]} O-O {[%emt 0:00:19]} 5. Bd3 {[%emt 0:06:28]} d5 {[%emt 0:01:26]} 6. Nf3 {[%emt 0:02:35]} c5 {[%emt 0:00:27]} 7. O-O {[%emt 0:11:41]} Nc6 {[%emt 0:00:22]} 8. cxd5 {[%emt 0:11:12]} exd5 {[%emt 0:02:13]} 9. Ne2 {[%emt 0:11:42.10]} c4 {[%emt 0:00:21]} 10. Bc2 {[%emt 0:00:42]} Bd6 {[%emt 0:00:50]} 11. b3 {[%emt 0:03:18]} b5 {[%emt 0:00:13]} 12. a4 {[%emt 0:01:49]} cxb3 {[%emt 0:00:19]} 13. Bxb3 {[%emt 0:00:07]} b4 {[%emt 0:00:04]} 14. Bb2 {[%emt 0:07:11]} Ba6 {[%emt 0:22:46.10]} 15. Re1 {[%emt 0:01:37]} Na5 {[%emt 0:00:46]} 16. Rc1 {[%emt 0:08:52]} Rc8 {[%emt 0:05:39]} 17. Rxc8 {[%emt 0:08:11]} Qxc8 {[%emt 0:00:09]} 18. Ne5 {[%emt 0:00:18]} Qb7 {[%emt 0:04:03]} 19. Nf4 {[%emt 0:03:15]} Rc8 {[%emt 0:02:32]} 20. g4 {[%emt 0:09:02]} Nxb3 {[%emt 0:01:03]} 21. Qxb3 {[%emt 0:01:25]} Ne4 {[%emt 0:06:31]} 22. Rc1 {[%emt 0:02:57]} Bc4 {[%emt 0:05:04]} 23. Nxc4 {[%emt 0:02:40]} dxc4 {[%emt 0:00:00]} 24. Rc3 {[%emt 0:00:47]} 0-1

[Event "CAN-op"]
[Site "Ottawa CAN"]
[Date "2026.07.11"]
[Round "2.1"]
[White "Cummings, David"]
[Black "Stefansson, Vignir Vatnar"]
[Result "1/2-1/2"]
[ECO "D40"]
[WhiteElo "2233"]
[BlackElo "2540"]
[WhiteFideId "-1"]
[BlackFideId "-1"]
[PlyCount "84"]
[GameId "2332995606986251"]
[EventDate "2026.07.11"]
[EventType "swiss"]
[EventRounds "9"]
[EventCountry "CAN"]
[TimeControl "5400+30"]
[WhiteClock "0:04:15"]
[BlackClock "0:14:46"]

1. c4 {[%emt 0:00:05.94]} e6 {[%emt 0:01:39.94]} 2. Nc3 {[%emt 0:00:10]} d5 {[%emt 0:00:07]} 3. e3 {[%emt 0:00:23]} Nf6 {[%emt 0:00:09]} 4. Nf3 {[%emt 0:00:12]} c5 {[%emt 0:00:07]} 5. cxd5 {[%emt 0:00:19]} exd5 {[%emt 0:00:07]} 6. d4 {[%emt 0:00:17]} a6 {[%emt 0:00:22]} 7. b3 {[%emt 0:00:52]} cxd4 {[%emt 0:00:18]} 8. Nxd4 {[%emt 0:00:53]} Bb4 {[%emt 0:00:08]} 9. Bb2 {[%emt 0:01:41]} O-O {[%emt 0:26:13]} 10. a3 {[%emt 0:06:11]} Ba5 {[%emt 0:07:59.10]} 11. Be2 {[%emt 0:01:23]} Re8 {[%emt 0:01:24]} 12. O-O {[%emt 0:00:46]} Bc7 {[%emt 0:00:05]} 13. Rc1 {[%emt 0:03:56]} Nbd7 {[%emt 0:09:58]} 14. Qc2 {[%emt 0:06:36]} Bb8 {[%emt 0:00:03]} 15. Rfd1 {[%emt 0:02:20]} Ne5 {[%emt 0:03:00]} 16. Nf3 {[%emt 0:07:16]} Be6 {[%emt 0:09:32]} 17. Nxe5 {[%emt 0:11:59.10]} Bxe5 {[%emt 0:00:17]} 18. Bf3 {[%emt 0:00:12]} Qd6 {[%emt 0:02:17]} 19. g3 {[%emt 0:04:19]} h5 {[%emt 0:01:17]} 20. Ne2 {[%emt 0:05:59]} Bxb2 {[%emt 0:06:33]} 21. Qxb2 {[%emt 0:00:07]} Bg4 {[%emt 0:00:13]} 22. Bxg4 {[%emt 0:06:33]} hxg4 {[%emt 0:00:09]} 23. Nf4 {[%emt 0:03:18]} Rad8 {[%emt 0:03:29]} 24. b4 {[%emt 0:03:29]} g5 {[%emt 0:02:29]} 25. Ne2 {[%emt 0:00:53]} Nd7 {[%emt 0:00:05]} 26. Nd4 {[%emt 0:04:28]} Ne5 {[%emt 0:00:34]} 27. Qc2 {[%emt 0:01:23]} Qf6 {[%emt 0:02:26]} 28. Qf5 {[%emt 0:01:45]} Qxf5 {[%emt 0:04:04]} 29. Nxf5 {[%emt 0:00:05]} Kh7 {[%emt 0:00:02]} 30. Rc7 {[%emt 0:03:28]} b5 {[%emt 0:00:04]} 31. Kg2 {[%emt 0:01:28]} Re6 {[%emt 0:00:27]} 32. h3 {[%emt 0:09:39]} gxh3+ {[%emt 0:00:17]} 33. Kxh3 {[%emt 0:00:05]} g4+ {[%emt 0:01:14]} 34. Kg2 {[%emt 0:00:30]} Kg6 {[%emt 0:02:57]} 35. Nd4 {[%emt 0:05:42]} Rf6 {[%emt 0:00:41]} 36. Ne2 {[%emt 0:01:40]} Rfd6 {[%emt 0:01:03]} 37. Nf4+ {[%emt 0:01:01]} Kf5 {[%emt 0:03:11]} 38. Rc5 {[%emt 0:00:38]} d4 {[%emt 0:01:26]} 39. e4+ {[%emt 0:00:46]} Kf6 {[%emt 0:00:03]} 40. Nh5+ {[%emt 0:02:49]} Ke6 {[%emt 0:00:06]} 41. Nf4+ {[%emt 0:00:04]} Kf6 {[%emt 0:00:04]} 42. Nh5+ {[%emt 0:01:34]} Ke6 {[%emt 0:00:04]} 1/2-1/2